bitfinex-derivatives/quotes_ETHF0:USTF0_20250403
["timestamp","ask_amount","ask_price","bid_price","bid_amount"]
[1743706059196,1.11844,1788.7,1788.6,40.8]
[1743706059795,0.73250366,1788.8,1788.6,40.8]
[1743706059993,0.00560366,1788.8,1788.7,3.2078]
[1743706061693,1.11837,1788.9,1788.7,3.2078]
[1743706061694,1.4448,1789.7,1788.7,11.6778]
[1743706061998,1.118,1789.4,1789.3,3.2078]
[1743706063494,1.11806,1789.3,1789.2,40.80840548]
[1743706063691,1.11825,1789.0,1788.9,3.2078]
[1743706064200,1.11815,1789.2,1788.9,4.32607]
[1743706064400,1.11822,1789.1,1788.9,4.32607]
[1743706064596,1.11825,1789.0,1788.9,3.2078]
[1743706064900,0.00840548,1789.1,1788.9,7.1738]
[1743706065098,6.0011,1790.5,1789.1,9.1778]
[1743706065299,1.1176,1790.1,1790.0,3.2078]
[1743706065697,2.5,1790.1,1789.6,3.2078]
[1743706065897,1.4913,1790.0,1789.9,3.2078]
[1743706066201,3.37640797,1790.6,1789.9,3.2078]
[1743706066394,2.62224,1790.5,1790.3,1.11743]
[1743706066599,1.5049,1790.5,1790.2,3.2078]
[1743706066804,9.9046,1791.0,1790.2,3.2078]
[1743706066805,2.79205,1791.3,1790.4,3.2078]
[1743706067008,1.11718,1790.8,1790.5,1.1173]
[1743706067305,1.11708,1790.9,1790.6,1.11722]
[1743706067507,1.11708,1790.9,1790.7,40.8]
[1743706067800,1.11708,1790.9,1790.8,3.2078]
[1743706069013,1.11706,1790.9,1790.8,3.2078]
[1743706069310,1.11691,1791.2,1790.8,4.32488]
[1743706069606,1.11696,1791.1,1790.8,4.32491]
[1743706069914,1.11696,1791.1,1791.0,3.2078]
[1743706070607,1.11711,1790.9,1790.7,5.4658]
[1743706071004,1.5085,1791.1,1790.7,5.4658]
[1743706071203,1.11711,1790.9,1790.7,5.4658]
[1743706071401,1.11692,1791.2,1790.9,1.11705]
[1743706071602,3.2078,1791.3,1790.9,3.2078]
[1743706071802,1.117,1791.0,1790.9,3.2078]
[1743706072410,7.4168,1791.0,1790.5,3.21618176]
[1743706072606,2.53448,1790.9,1790.6,1.4197]
[1743706072910,2.53448,1790.9,1790.8,3.2078]
[1743706073498,2.53448,1790.9,1790.6,2.53691]
[1743706073499,1.11719,1790.7,1790.6,4.6275]
[1743706073903,2.7922,1791.2,1790.6,4.32501]
[1743706074101,1.11704,1791.0,1790.8,1.11713]
[1743706074305,5.99979,1791.4,1790.9,4.6275]
[1743706074306,2.79199,1791.4,1790.9,4.6275]
[1743706074509,1.4174,1791.3,1790.9,5.74451]
[1743706074807,1.117,1791.0,1790.9,1.4197]
[1743706075212,1.11719,1790.7,1790.6,3.9406]
[1743706075413,1.11719,1790.7,1790.6,5.3827]
[1743706075603,1.11719,1790.7,1790.6,3.2078]
[1743706076009,1.11719,1790.7,1790.6,4.6499]
[1743706076210,1.11719,1790.7,1790.6,1.4421]
[1743706076406,1.11725,1790.6,1790.5,0.00838176]
[1743706076613,2.57515,1790.6,1790.5,0.00838176]
[1743706077417,8.28295,1790.6,1790.5,0.00838176]
[1743706077915,5.07515,1790.6,1790.5,0.00838176]
[1743706078112,1.11744,1790.3,1790.2,1.4421]
[1743706078312,4.233,1790.4,1790.0,6.44152]
[1743706078506,1.11753,1790.2,1790.0,6.44152]
[1743706078713,8.47718,1790.4,1790.0,5.3239]
[1743706079014,1.11756,1790.1,1790.0,5.3239]
[1743706079209,1.11756,1790.1,1790.0,4.6325]
[1743706079615,1.11756,1790.1,1790.0,3.2078]
[1743706080417,1.11763,1790.0,1789.9,0.00838176]
[1743706080717,1.11759,1790.1,1789.9,4.33387176]
[1743706080915,1.11759,1790.1,1790.0,1.4247]
[1743706081519,1.11754,1790.2,1790.0,2.54233]
[1743706081720,1.11756,1790.1,1790.0,1.4247]
[1743706082011,1.11755,1790.2,1790.0,2.5423]
[1743706082213,1.11755,1790.2,1790.1,3.2078]
[1743706083821,1.4507,1790.4,1790.1,4.32534]
[1743706084021,2.79316,1790.6,1790.3,3.2078]
[1743706084323,1.11731,1790.5,1790.4,1.3961]
[1743706085108,1.50310269,1790.7,1790.4,2.51348]
[1743706085324,1.11725,1790.6,1790.5,3.2078]
[1743706085618,1.11725,1790.6,1790.5,4.61]
[1743706086618,1.11725,1790.6,1790.5,1.4022]
[1743706087423,1.11725,1790.6,1790.3,3.2078]
[1743706087424,1.11738,1790.4,1790.3,3.2078]
[1743706087718,1.11738,1790.4,1790.3,5.36214924]
[1743706088019,1.11738,1790.4,1790.3,2.15434924]
[1743706088223,1.11738,1790.4,1790.3,0.73574924]
[1743706088516,1.5077,1790.5,1790.1,12.44726]
[1743706088517,4.301,1790.5,1790.1,12.44726]
[1743706088712,1.1175,1790.2,1790.1,6.7033]
[1743706088912,1.1175,1790.2,1790.1,4.52583678]
[1743706089109,1.1175,1790.2,1790.1,5.46144297]
[1743706089308,1.1175,1790.2,1790.1,5.99574781]
[1743706089513,1.1175,1790.2,1790.1,7.91259654]
[1743706090419,1.11748,1790.3,1790.2,1.11749]
[1743706090614,1.11748,1790.3,1790.2,3.97149654]
[1743706091121,1.11748,1790.3,1790.2,3.97534384]
[1743706091316,1.11745,1790.5,1790.4,1.11749]
[1743706091618,1.11745,1790.5,1790.4,5.09283384]
[1743706092022,1.11741,1790.6,1790.5,1.11741]
[1743706092219,1.11741,1790.6,1790.5,5.26719131]
[1743706093022,1.11741,1790.6,1790.5,6.65092071]
[1743706093218,1.11741,1790.6,1790.5,7.18676819]
[1743706094419,1.11741,1790.6,1790.5,8.30419819]
[1743706094723,1.11741,1790.6,1790.5,7.18676819]
[1743706094916,1.11741,1790.6,1790.5,3.98026611]
[1743706095121,2.62231,1790.6,1790.5,3.98026611]
[1743706096017,2.62231,1790.6,1790.5,3.04101318]
[1743706096414,1.12561269,1790.7,1790.6,1.11736]
[1743706096624,1.12560269,1790.7,1790.6,1.12428706]
[1743706096923,1.12560269,1790.7,1790.6,5.25572101]
[1743706097131,0.00830269,1790.7,1790.6,6.37309438]
[1743706097326,5.58481,1791.3,1790.9,1.11715]
[1743706097525,1.11711,1791.1,1791.0,1.12393414]
[1743706097719,1.11711,1791.1,1791.0,3.04078287]
[1743706098023,1.11711,1791.1,1791.0,43.84078287]
[1743706098627,1.117,1791.2,1791.1,1.11704]
[1743706098821,1.11705,1791.1,1791.0,47.04175873]
[1743706099032,1.11697,1791.3,1791.1,1.81763]
[1743706099325,1.11697,1791.3,1791.2,2.49297567]
[1743706099718,1.11697,1791.3,1791.2,3.43594873]
[1743706099915,1.11697,1791.3,1791.2,2.25634951]
[1743706100322,3.61697,1791.3,1791.2,0.73724951]
[1743706100814,5.02327,1791.3,1791.2,0.73724951]
[1743706101514,1.11711,1791.0,1790.9,0.00838176]
[1743706101726,1.11711,1791.0,1790.9,0.58469495]
[1743706102022,1.11704,1791.2,1791.0,1.11709]
[1743706102224,1.4063,1791.3,1790.9,7.73856905]
[1743706102422,4.19863,1791.3,1790.9,7.73861905]
[1743706102726,1.11711,1791.0,1790.9,4.73528176]
[1743706102913,1.11711,1791.0,1790.9,5.31154236]
[1743706103117,1.11711,1791.0,1790.9,5.46076567]
[1743706103426,3.61711,1791.0,1790.9,0.73386567]
[1743706103628,4.37871,1791.0,1790.9,0.73386567]
[1743706103825,10.06251,1791.0,1790.9,0.73386567]
[1743706104125,5.13291,1791.0,1790.9,0.00838176]
[1743706104322,2.63291,1791.0,1790.9,0.00838176]
[1743706107327,1.11711,1791.0,1790.9,0.00838176]
[1743706107723,3.24893,1791.2,1791.0,1.11711]
[1743706108026,1.11703,1791.2,1791.1,1.3841]
[1743706108324,1.11703,1791.2,1791.1,42.1841]
[1743706109537,1.11711,1791.0,1790.9,0.00838176]
[1743706110026,3.61711,1791.0,1790.9,0.00838176]
[1743706110223,1.11711,1791.0,1790.9,0.00838176]
[1743706110422,1.11693,1791.3,1790.9,4.33331176]
[1743706110733,1.11705,1791.2,1791.0,3.33021]
[1743706110928,3.2078,1791.6,1791.3,1.1169]
[1743706111135,1.1168,1791.5,1791.4,1.4812]
[1743706111329,1.1168,1791.5,1791.1,8.53881]
[1743706111330,4.18924,1791.5,1791.1,8.53879]
[1743706111526,1.11693,1791.3,1791.2,1.4812]
[1743706111733,4.18924,1791.5,1791.2,1.4812]
[1743706111928,1.3972,1791.5,1791.4,1.11686]
[1743706112234,1.3972,1791.5,1791.3,3.2078]
[1743706112437,2.51404,1791.5,1791.4,1.4724]
[1743706113134,1.11684,1791.5,1791.4,1.4724]
[1743706114133,1.11684,1791.5,1791.4,2.2363]
[1743706115132,9.9108,1791.5,1791.1,3.2078]
[1743706115435,1.11711,1791.0,1790.9,3.21618176]
[1743706115647,1.11711,1791.0,1790.9,0.00838176]
[1743706116136,2.50291,1791.0,1790.9,0.00838176]
[1743706116336,1.11711,1791.0,1790.9,3.21618176]
[1743706116536,1.11711,1791.1,1790.9,3.21618176]
[1743706116733,3.2078,1791.3,1791.0,1.3946]
[1743706116937,1.11702,1791.2,1791.0,2.5117]
[1743706117440,1.11705,1791.1,1791.0,1.3946]
[1743706117636,5.99951,1791.7,1791.0,1.3946]
[1743706117834,5.99982,1791.5,1791.1,0.7075]
[1743706118036,2.79243,1791.3,1791.0,3.2078]
[1743706118239,1.1171,1791.1,1791.0,42.2611]
[1743706118442,2.53355,1791.2,1791.0,43.37821]
[1743706118738,2.78988,1792.9,1791.3,3.2078]
[1743706118937,2.78988,1792.9,1791.1,2.0276489]
[1743706118938,3.2078,1794.2,1792.9,2.78969]
[1743706119133,0.11149514,1793.8,1793.6,3.2078]
[1743706119334,0.11149514,1793.8,1793.7,45.71158734]
[1743706119538,30.70738674,1794.6,1794.5,1.11494]
[1743706119737,5.99296,1796.0,1794.5,5.7078]
[1743706119941,1.11467,1795.0,1794.6,4.6689]
[1743706120236,1.11481,1794.7,1794.6,3.21615748]
[1743706120430,0.06377021,1794.8,1794.3,3.2078]
[1743706120629,0.06377021,1794.8,1794.5,3.2078]
[1743706121137,1.17861021,1794.7,1794.2,3.2078]
[1743706121437,0.06377021,1794.7,1794.3,1.4112]
[1743706121644,1.47927654,1794.6,1794.3,0.00835748]
[1743706121851,0.00827654,1794.6,1794.3,0.00835748]
[1743706122142,1.17874021,1794.5,1794.3,4.62735748]
[1743706122330,0.06377021,1794.5,1794.3,4.62735748]
[1743706122736,1.17871021,1794.5,1794.4,1.4112]
[1743706122942,1.17871021,1794.5,1794.3,3.21615748]
[1743706123143,0.06377021,1794.4,1794.3,3.21615748]
[1743706123340,1.17877021,1794.4,1794.3,3.21615748]
[1743706123641,0.06377021,1794.4,1794.3,3.21615748]
[1743706124639,0.06377021,1794.4,1794.3,6.83121748]
[1743706125035,0.00827654,1794.6,1794.4,1.11499]
[1743706125239,0.00827654,1794.6,1794.3,5.71615748]
[1743706125240,0.00827654,1794.6,1794.5,4.6788]
[1743706125643,0.00827654,1794.6,1794.5,5.40758922]
[1743706125847,0.00827654,1794.6,1794.5,7.90758922]
[1743706126345,0.00827654,1794.6,1794.5,5.40758922]
[1743706126935,3.21607654,1794.6,1794.2,3.2078]
[1743706127152,1.11527,1794.0,1793.5,3.2078]
[1743706127339,3.2078,1793.8,1793.5,8.1418]
[1743706127536,3.2078,1793.8,1793.6,1.34182849]
[1743706128138,1.11533,1793.9,1793.5,8.15015748]
[1743706128343,1.11533,1793.9,1793.5,9.26565748]
[1743706128545,1.11533,1793.9,1793.6,1.11549]
[1743706128742,3.2078,1794.0,1793.7,1.11543]
[1743706128941,3.2078,1794.2,1794.1,1.11516]
[1743706129141,3.2078,1794.2,1794.0,1.11521]
[1743706129344,3.2078,1794.2,1793.9,6.08699965]
[1743706129541,3.2078,1794.2,1793.9,4.97172965]
[1743706129747,4.32305,1794.0,1793.9,4.97172965]
[1743706129949,1.11521,1794.1,1793.9,4.97172965]
[1743706130440,0.00827654,1794.6,1794.0,1.5062]
[1743706130646,0.16860797,1796.4,1794.8,2.78676]
[1743706130647,3.2078,1795.6,1794.8,2.78676]
[1743706130841,3.2078,1795.6,1795.2,3.2078]
[1743706131147,3.2078,1795.6,1795.0,3.2078]
[1743706131148,1.11456,1795.1,1795.0,3.2078]
[1743706131349,2.7858,1795.5,1795.0,3.2078]
[1743706131350,1.4355,1795.5,1795.0,3.2078]
[1743706131550,1.11455,1795.2,1795.0,4.32242]
[1743706131852,1.11455,1795.2,1795.1,0.00835748]
[1743706132050,4.32235,1795.2,1795.1,0.00835748]
[1743706132442,4.32235,1795.2,1794.4,3.2078]
[1743706132443,1.11485,1794.7,1794.4,3.2078]
[1743706132639,3.2078,1794.9,1794.4,3.2078]
[1743706132848,1.11478,1794.8,1794.6,1.11487]
[1743706133047,3.2078,1794.9,1794.4,3.2078]
[1743706133248,3.2078,1794.9,1794.5,41.91487]
[1743706133546,3.2078,1794.7,1794.5,0.00835748]
[1743706133757,1.11487,1794.6,1794.5,0.00835748]
[1743706134043,0.00835748,1795.4,1795.3,1.11444]
[1743706134437,0.00835748,1795.4,1795.0,1.4686]
[1743706134641,4.32239,1795.1,1794.9,1.11467]
[1743706135046,1.11459,1795.1,1794.8,8.4333]
[1743706135250,3.2078,1795.0,1794.7,1.1148]
[1743706135452,2.52151,1794.9,1794.7,1.1148]
[1743706136143,2.52151,1794.9,1794.6,1.4686]
[1743706136346,2.52151,1794.9,1794.7,1.11481]
[1743706136744,2.52151,1794.9,1794.6,1.4686]
[1743706136745,1.11475,1794.8,1794.6,2.58341]
[1743706137150,2.52153,1794.9,1794.7,1.11481]
[1743706137844,2.52152,1794.9,1794.7,1.1148]
[1743706138145,2.52154,1794.9,1794.6,1.11487]
[1743706138346,1.11475,1794.8,1794.6,1.11482]
[1743706138547,2.62545,1794.8,1794.6,1.11482]
[1743706139254,7.16552355,1796.8,1795.1,3.2078]
[1743706139255,3.2078,1796.5,1795.1,3.2078]
[1743706139455,3.19944252,1796.7,1796.6,1.11363]
[1743706139640,3.2078,1797.2,1796.6,40.8]
[1743706139841,1.11357,1796.7,1796.6,40.8]
[1743706140253,1.11385,1796.3,1796.1,3.2078]
[1743706140454,1.11377,1796.4,1796.1,4.32172]
[1743706140643,3.2078,1796.5,1796.1,3.2078]
[1743706140843,1.11382,1796.3,1796.2,0.79433525]
[1743706141045,3.2078,1796.3,1795.3,0.82520018]
[1743706141246,1.11438,1795.4,1795.3,0.82520018]
[1743706141549,1.1146,1795.1,1794.8,5.82384]
[1743706141747,1.1146,1795.1,1794.8,3.2078]
[1743706141949,0.7407,1795.4,1794.8,3.2078]
[1743706142244,0.00835748,1795.1,1794.8,3.21615748]
[1743706142650,1.11465,1795.0,1794.8,3.21615748]
[1743706142850,1.5026,1794.9,1794.8,0.00835748]
[1743706143046,2.61729,1794.9,1794.8,0.00835748]
[1743706143246,1.5026,1794.9,1794.8,0.00835748]
[1743706143652,2.61729,1794.9,1794.8,0.00835748]
[1743706144254,1.5026,1794.9,1794.8,0.00835748]
[1743706144458,2.61729,1794.9,1794.8,0.00835748]
[1743706144651,5.82509,1794.9,1794.8,0.00835748]
[1743706144853,7.2104,1794.9,1794.2,5.76148]
[1743706145050,1.11496,1794.5,1794.2,5.76148]
[1743706145258,1.11501,1794.4,1794.2,4.6464]
[1743706145450,1.11503,1794.4,1794.3,40.8]
[1743706145650,4.32283,1794.4,1794.3,40.8]
[1743706145855,1.115,1794.4,1794.3,40.8]
[1743706147758,1.11506,1794.3,1794.2,0.00835748]
[1743706147953,1.11531,1794.0,1793.7,3.2078]
[1743706148157,1.11531,1793.9,1793.8,40.8]
[1743706148457,1.11531,1793.9,1793.8,3.34504854]
[1743706148653,1.86531,1793.9,1793.8,3.34504854]
[1743706148854,4.36531,1793.9,1793.8,0.82765641]
[1743706149555,4.36531,1793.9,1793.8,6.41e-06]
[1743706149761,1.11537,1793.8,1793.7,3.89e-06]
[1743706149948,4.32317,1793.8,1793.7,3.89e-06]
[1743706150352,3.2078,1794.4,1793.7,3.04259125]
[1743706150557,3.2078,1794.3,1793.8,4.66801291]
[1743706150761,3.2078,1794.3,1793.9,0.54258736]
[1743706150952,4.32286,1794.3,1794.2,40.8]
[1743706151155,1.5098,1794.4,1794.2,40.8]
[1743706151350,1.11506,1794.3,1794.2,40.8]
[1743706152558,3.61506,1794.3,1794.2,40.8]
[1743706152858,1.11537,1793.8,1793.7,3.89e-06]
[1743706153362,1.11537,1793.8,1793.7,0.72320262]
[1743706153660,1.11537,1793.8,1793.7,3.89e-06]
[1743706155168,2.78812,1794.0,1793.7,3.89e-06]
[1743706155169,1.11536,1793.9,1793.7,3.89e-06]
[1743706155460,7.48e-06,1794.5,1794.1,1.11518]
[1743706155662,3.2078,1795.3,1794.6,2.78705]
[1743706155967,3.2078,1795.3,1794.4,44.0078]
[1743706155968,3.2078,1794.8,1794.4,44.0078]
[1743706156157,1.11492,1794.6,1794.4,44.0078]
[1743706156354,3.2078,1794.8,1794.5,0.72241532]
[1743706156555,1.11487,1794.6,1794.5,0.72241532]
[1743706157067,1.11487,1794.6,1794.5,0.00835748]
[1743706159459,0.00835748,1794.8,1794.5,0.00835748]
[1743706159656,0.00835748,1794.8,1794.7,1.11481]
[1743706160060,0.00835748,1794.8,1794.7,5.68061493]
[1743706160255,0.00835748,1794.8,1794.7,2.41619782]
[1743706160453,6.83090748,1794.8,1794.7,0.73079289]
[1743706160665,1.11487,1794.6,1794.5,0.00835748]
[1743706160958,6.64287,1794.6,1794.5,0.00835748]
[1743706161164,9.14287,1794.6,1794.5,0.00835748]
[1743706161663,12.35067,1794.6,1794.5,0.00835748]
[1743706162366,9.14287,1794.6,1794.5,0.00835748]
[1743706162767,0.7394,1795.1,1794.5,0.00835748]
[1743706162768,3.2078,1795.7,1794.6,2.78716]
[1743706162964,3.2078,1795.4,1794.9,3.2078]
[1743706163261,1.11456,1795.1,1795.0,40.8]
[1743706163867,1.11475,1794.8,1794.7,3.2078]
[1743706164768,1.11481,1794.7,1794.6,0.00835748]
[1743706165169,5.7078,1794.7,1793.9,3.2078]
[1743706165365,1.11535,1793.9,1793.7,3.2078]
[1743706165571,1.11535,1793.9,1793.6,2.62207]
[1743706165572,2.6021,1793.8,1793.6,40.8]
[1743706165966,1.11543,1793.7,1793.6,40.8]
[1743706166164,1.4867,1793.7,1793.6,40.8]
[1743706166464,2.60213,1793.7,1793.6,40.8]
[1743706167266,0.00835748,1793.8,1793.6,43.3]
[1743706167566,0.00835748,1793.8,1793.7,5.79963]
[1743706168162,0.00835748,1793.8,1793.7,6.91391458]
[1743706168362,6.70509,1794.3,1793.7,8.29848458]
[1743706168569,6.7051,1794.3,1794.0,3.2078]
[1743706168774,6.7051,1794.3,1794.1,1.4764]
[1743706169267,1.11512,1794.2,1794.1,1.4764]
[1743706169575,1.11512,1794.2,1793.6,43.58869]
[1743706169576,1.11533,1793.9,1793.7,3.2078]
[1743706169761,1.11533,1793.9,1793.6,46.63037]
[1743706169967,1.11529,1794.0,1793.8,3.2078]
[1743706170363,0.00835748,1794.4,1794.3,1.11506]
[1743706170664,0.7029,1796.1,1794.5,3.2078]
[1743706170864,3.2078,1795.8,1795.3,3.2078]
[1743706171166,1.11431,1795.5,1795.4,40.8]
[1743706172071,0.00835358,1795.6,1795.4,2.5]
[1743706172270,0.00835358,1795.6,1795.5,5.82921]
[1743706172474,0.00835358,1795.6,1795.5,46.62921]
[1743706173367,0.00835358,1795.6,1795.5,49.12921]
[1743706173570,1.11403,1796.0,1795.5,48.0149]
[1743706173764,1.11403,1796.0,1795.7,3.2078]
[1743706173978,1.11403,1796.0,1795.8,1.4402]
[1743706174271,1.443,1796.2,1795.8,1.4402]
[1743706174472,1.443,1796.2,1795.7,3.2078]
[1743706174669,1.11413,1795.8,1795.7,3.2078]
[1743706175779,1.11413,1795.8,1795.3,0.71795748]
[1743706175780,1.11425,1795.6,1795.3,3.21615748]
[1743706176077,1.11425,1795.6,1795.3,4.33058748]
[1743706176271,55.63631,1798.1,1795.4,40.8]
[1743706176473,1.4464,1797.0,1796.8,3.2078]
[1743706176678,2.55981,1797.0,1796.7,1.11354]
[1743706176882,1.11345,1796.9,1796.8,3.2078]
[1743706177770,1.11338,1797.1,1796.8,3.2078]
[1743706177971,1.11338,1797.1,1797.0,3.2078]
[1743706178167,2.78265,1797.6,1797.0,3.2078]
[1743706178371,2.78347,1797.0,1796.6,3.21615748]
[1743706178571,1.11357,1796.7,1796.6,0.00835748]
[1743706178971,1.11382,1796.3,1796.2,1.4151]
[1743706179175,1.11388,1796.2,1796.1,3.2078]
[1743706179372,1.11413,1795.8,1795.7,1.4151]
[1743706180171,0.00835748,1795.9,1795.7,1.4151]
[1743706180378,0.00835748,1795.9,1795.8,3.2078]
[1743706180580,1.12242748,1795.9,1795.8,3.2078]
[1743706181383,0.00835748,1795.9,1795.8,3.2078]
[1743706181980,0.00835748,1795.9,1795.8,6.82193]
[1743706182877,0.00835748,1795.9,1795.8,47.62193]
[1743706183182,0.00835748,1795.9,1795.8,44.0078]
[1743706183580,1.12242748,1795.9,1795.8,3.2078]
[1743706183984,1.11413,1795.8,1795.7,42.2151]
[1743706184483,0.00835748,1795.9,1795.8,1.11413]
[1743706184692,0.00835748,1795.9,1795.8,4.32193]
[1743706184877,0.00835748,1795.9,1795.8,6.82193]
[1743706185288,0.00835748,1795.9,1795.8,47.62193]
[1743706185981,0.00835748,1795.9,1795.8,3.2078]
[1743706185982,1.12242748,1795.9,1795.8,3.2078]
[1743706186579,1.12242748,1795.9,1795.8,44.0078]
[1743706186779,1.12242748,1795.9,1795.8,3.2078]
[1743706187181,1.11419,1795.7,1795.6,40.80835748]
[1743706187386,1.11419,1795.7,1795.6,0.00835748]
[1743706187885,1.11444,1795.3,1795.2,3.2078]
[1743706188085,2.78588,1795.5,1794.9,4.6514]
[1743706188086,1.1146,1795.1,1794.9,4.6514]
[1743706188283,1.3732,1795.4,1794.9,4.6514]
[1743706188484,2.7861,1795.3,1794.9,3.2078]
[1743706188791,2.7861,1795.3,1794.7,4.32261]
[1743706188792,1.11471,1794.9,1794.7,4.32261]
[1743706188980,1.11471,1794.9,1794.8,1.4436]
[1743706191888,0.00835748,1795.0,1794.8,3.9436]
[1743706192187,1.12298748,1795.0,1794.9,4.7056]
[1743706192380,1.12298748,1795.0,1794.9,5.82029]
[1743706192580,1.12298748,1795.0,1794.9,4.7056]
[1743706193091,1.12298748,1795.0,1794.9,3.2078]
[1743706193384,1.12298748,1795.0,1794.9,44.0078]
[1743706194385,0.00835748,1795.0,1794.9,45.12249]
[1743706194581,0.00835748,1795.0,1794.9,47.62249]
[1743706194781,4.26916,1795.6,1795.2,1.11445]
[1743706194991,1.11438,1795.4,1795.3,3.2078]
[1743706195384,2.59788,1795.4,1795.3,3.2078]
[1743706197591,1.11438,1795.4,1795.3,3.2078]
[1743706197786,2.53728,1795.4,1795.3,3.2078]
[1743706198388,2.78507,1796.0,1795.4,1.11438]
[1743706198584,1.4229,1796.1,1795.7,3.2078]
[1743706198787,1.114,1796.0,1795.9,3.2078]
[1743706199092,1.114,1796.0,1795.9,4.5981]
[1743706199596,1.114,1796.0,1795.9,45.3981]
[1743706200082,4.20748,1796.3,1795.9,45.3981]
[1743706200283,1.114,1796.0,1795.9,40.8]
[1743706200482,1.11425,1795.6,1795.5,3.2078]
[1743706200684,1.11433,1795.5,1795.3,4.3222]
[1743706200890,1.11438,1795.4,1795.3,3.2078]
[1743706201787,1.4814,1795.5,1795.2,0.00835748]
[1743706201788,1.11444,1795.3,1795.2,0.00835748]
[1743706202199,1.11462,1795.0,1794.9,3.2078]
[1743706204692,1.11469,1794.9,1794.8,40.80835748]
[1743706204893,2.61869,1794.9,1794.8,40.80835748]
[1743706205200,2.61869,1794.9,1794.8,3.91e-06]
[1743706206588,0.7068,1795.1,1794.8,3.20780391]
[1743706206792,1.11469,1794.9,1794.8,3.20780391]
[1743706207291,1.4392,1795.0,1794.8,3.20780391]
[1743706207496,0.7221,1795.3,1794.8,3.20780391]
[1743706207698,1.4392,1795.2,1794.8,3.20780391]
[1743706207888,1.4392,1795.2,1795.0,3.2078]
[1743706208094,1.11456,1795.1,1795.0,3.2078]
[1743706208293,2.55372,1795.2,1795.0,4.3224]
[1743706208495,1.4392,1795.2,1795.1,2.55626]
[1743706208689,1.11446,1795.3,1795.1,2.55626]
[1743706208990,1.11446,1795.3,1795.2,3.2078]
[1743706209396,2.78626,1795.2,1794.9,3.2078]
[1743706209595,1.11462,1795.0,1794.9,3.2078]
[1743706209995,1.11469,1794.9,1794.8,3.91e-06]
[1743706210193,3.26749,1794.9,1794.8,3.91e-06]
[1743706212103,2.55049,1794.9,1794.8,3.91e-06]
[1743706212401,2.55049,1794.9,1794.8,3.20780391]
[1743706212605,2.55049,1794.9,1794.8,3.91e-06]
[1743706214397,1.4358,1794.9,1794.8,3.91e-06]
[1743706214695,1.11469,1794.9,1794.8,3.20780391]
[1743706214902,2.52514,1795.0,1794.8,4.32250391]
[1743706215497,1.4105,1795.0,1794.9,1.11469]
[1743706215803,1.11439,1795.4,1795.3,1.11442]
[1743706216004,1.11439,1795.4,1795.3,4.32222]
[1743706216303,0.00835748,1795.5,1795.4,1.11438]
[1743706216500,1.12266748,1795.5,1795.4,1.4707]
[1743706216691,0.00835748,1795.5,1795.4,5.08508]
[1743706216899,0.00835748,1795.5,1795.4,5.80065011]
[1743706217098,0.00835748,1795.5,1795.4,6.92952225]
[1743706217298,1.12266748,1795.5,1795.4,41.51557011]
[1743706217602,1.12266748,1795.5,1795.4,0.71557011]
[1743706218201,1.11456,1795.1,1795.0,3.2078]
[1743706219392,2.57142,1795.2,1795.0,4.32239]
[1743706220002,1.4569,1795.2,1795.0,3.2078]
[1743706220201,0.00835748,1795.5,1795.2,1.11444]
[1743706220503,1.11438,1795.4,1795.3,3.2078]
[1743706220704,1.1145,1795.2,1795.1,4.669]
[1743706220904,1.1144,1795.4,1795.2,1.11447]
[1743706221207,1.1145,1795.2,1795.1,3.2078]
[1743706221401,1.4569,1795.4,1795.1,3.2078]
[1743706221801,12.66130784,1810.6,1795.1,3.2078]
[1743706221802,2.78393,1796.8,1795.4,2.78584]
[1743706221997,1.11376,1796.4,1796.2,1.11386]
[1743706222306,1.11376,1796.4,1796.3,3.2078]
[1743706222503,1.11376,1796.4,1796.3,40.8]
[1743706222903,1.11388,1796.2,1796.1,3.2078]
[1743706223102,1.11386,1796.3,1796.2,0.00835748]
[1743706223407,1.4015,1796.4,1796.2,40.80835748]
[1743706223602,2.51526,1796.4,1796.3,3.2078]
[1743706224204,1.4015,1796.4,1796.3,3.2078]
[1743706224401,1.4015,1796.4,1796.3,4.6307]
[1743706224711,1.4015,1796.4,1796.3,5.74452]
[1743706225100,1.4015,1796.4,1796.3,4.6307]
[1743706225407,2.51526,1796.4,1796.3,4.6307]
[1743706225803,1.4015,1796.4,1796.3,4.6307]
[1743706226206,0.00835748,1796.5,1796.3,4.6307]
[1743706226401,1.12205748,1796.5,1796.4,1.51]
[1743706227102,2.14832135,1821.4,1796.6,3.2078]
[1743706227103,5.99008,1797.8,1796.6,3.2078]
[1743706227409,1.11295,1797.7,1797.6,3.2078]
[1743706227903,1.1132,1797.3,1797.2,3.2078]
[1743706228705,1.11326,1797.2,1797.1,0.00835748]
[1743706228904,2.57046,1797.2,1797.1,0.00835748]
[1743706229305,1.1132,1797.3,1797.1,0.00835748]
[1743706229611,1.12152357,1797.4,1797.2,4.32106]
[1743706229803,1.11326,1797.2,1797.1,0.00835748]
[1743706230602,8.22022357,1797.4,1797.1,0.00835748]
[1743706230603,0.00835357,1797.4,1797.2,1.11323]
[1743706230814,0.00835357,1797.4,1797.3,3.2078]
[1743706231002,1.12149357,1797.4,1797.3,3.2078]
[1743706231197,1.12149357,1797.4,1797.3,44.0078]
[1743706231607,0.00835357,1797.4,1797.3,44.0078]
[1743706231811,1.12149357,1797.4,1797.3,44.0078]
[1743706232109,0.00835357,1797.4,1797.3,44.0078]
[1743706232312,1.12149357,1797.4,1797.3,44.0078]
[1743706232509,0.00835357,1797.4,1797.3,44.0078]
[1743706232698,1.12149357,1797.4,1797.3,44.0078]
[1743706233207,1.12149357,1797.4,1797.3,3.2078]
[1743706233208,0.00835357,1797.4,1797.3,3.2078]
[1743706233506,1.12149357,1797.4,1797.3,3.2078]
[1743706234010,1.12149357,1797.4,1797.1,3.21615748]